fUSD/lending_fUSD_20250216
["ID","MTS","AMOUNT","RATE_DAILY","PERIOD"]
[353242007,1739707850194,-500.0,0.00010958,2]
[353242008,1739707850204,-500.0,0.00010958,2]
[353242009,1739707850213,-500.0,0.00010958,2]
[353242010,1739707850222,-500.0,0.00010958,2]
[353242011,1739707850231,-500.0,0.00010958,2]
[353242012,1739707850240,-500.0,0.00010958,2]
[353242013,1739707850249,-500.0,0.00010958,2]
[353242014,1739707850258,-500.0,0.00010958,2]
[353242015,1739707850267,-500.0,0.00010958,2]
[353242016,1739707850276,-500.0,0.00010958,2]
[353242017,1739707850285,-500.0,0.00010958,2]
[353242018,1739707850294,-500.0,0.00010958,2]
[353242019,1739707850303,-1026.11,0.00010958,2]
[353242020,1739707850312,-500.0,0.00010958,2]
[353242021,1739707850322,-193.78267535,0.00010958,2]
[353242022,1739707850332,-642.21,0.00010958,2]
[353242023,1739707850341,-500.0,0.00010958,2]
[353242024,1739707850351,-500.0,0.00010958,2]
[353242025,1739707850359,-500.0,0.00010958,2]
[353242026,1739707850368,-500.0,0.00010958,2]
[353242027,1739707850379,-500.0,0.00010958,2]
[353242028,1739707850388,-500.0,0.00010958,2]
[353242029,1739707850397,-513.22353374,0.00010958,2]
[353242030,1739707850406,-500.0,0.00010958,2]
[353242031,1739707850415,-500.0,0.00010958,2]
[353242032,1739707850424,-500.0,0.00010958,2]
[353242033,1739707850434,-500.0,0.00010958,2]
[353242034,1739707850442,-500.0,0.00010958,2]
[353242035,1739707850451,-500.0,0.00010958,2]
[353242036,1739707850460,-500.0,0.00010958,2]
[353242037,1739707850470,-500.0,0.00010958,2]
[353242038,1739707850479,-500.0,0.00010958,2]
[353242039,1739707850488,-500.0,0.00010958,2]
[353242040,1739707850497,-500.0,0.00010958,2]
[353242041,1739707850506,-500.0,0.00010958,2]
[353242042,1739707850516,-500.0,0.00010958,2]
[353242043,1739707850527,-500.0,0.00010958,2]
[353242044,1739707850536,-500.0,0.00010958,2]
[353242045,1739707850545,-500.0,0.00010958,2]
[353242046,1739707850554,-500.0,0.00010958,2]
[353242047,1739707850563,-645.25,0.00010958,2]
[353242048,1739707850573,-500.0,0.00010958,2]
[353242049,1739707850582,-500.0,0.00010958,2]
[353242050,1739707850591,-500.0,0.00010958,2]
[353242051,1739707850601,-500.0,0.00010958,2]
[353242052,1739707850610,-500.0,0.00010958,2]
[353242053,1739707850620,-500.0,0.00010958,2]
[353242054,1739707850630,-500.0,0.00010958,2]
[353242055,1739707850640,-500.0,0.00010958,2]
[353242056,1739707850649,-500.0,0.00010958,2]
[353242057,1739707850658,-500.0,0.00010958,2]
[353242058,1739707850668,-554.91,0.00010958,2]
[353242059,1739707850678,-500.0,0.00010958,2]
[353242060,1739707850687,-500.0,0.00010958,2]
[353242061,1739707850696,-503.36174568,0.00010958,2]
[353242062,1739707850706,-500.0,0.00010958,2]
[353242063,1739707850715,-500.0,0.00010958,2]
[353242064,1739707850724,-500.0,0.00010958,2]
[353242065,1739707850733,-500.0,0.00010958,2]
[353242066,1739707850742,-500.0,0.00010958,2]
[353242067,1739707850751,-500.0,0.00010958,2]
[353242068,1739707850760,-500.0,0.00010958,2]
[353242069,1739707850769,-500.0,0.00010958,2]
[353242070,1739707850778,-500.0,0.00010958,2]
[353242071,1739707850787,-500.0,0.00010958,2]
[353242072,1739707850797,-500.0,0.00010958,2]
[353242073,1739707850806,-500.0,0.00010958,2]
[353242074,1739707850815,-574.6,0.00010958,2]
[353242075,1739707850826,-500.0,0.00010958,2]
[353242076,1739707850835,-494.0,0.00010958,2]
[353242077,1739707850844,-500.0,0.00010958,2]
[353242078,1739707850853,-331.16115064,0.00010958,2]
[353242079,1739707850862,-500.0,0.00010958,2]
[353242080,1739707850872,-500.0,0.00010958,2]
[353242081,1739707850882,-500.0,0.00010958,2]
[353242082,1739707850893,-500.0,0.00010958,2]
[353242083,1739707850904,-500.0,0.00010958,2]
[353242084,1739707850913,-500.0,0.00010958,2]
[353242085,1739707850922,-500.0,0.00010958,2]
[353242086,1739707850931,-500.0,0.00010958,2]
[353242087,1739707850940,-500.0,0.00010958,2]
[353242088,1739707850950,-500.0,0.00010958,2]
[353242089,1739707850959,-508.55092662,0.00010958,2]
[353242090,1739707850969,-500.0,0.00010958,2]
[353242091,1739707850978,-500.0,0.00010958,2]
[353242092,1739707850987,-500.0,0.00010958,2]
[353242093,1739707850996,-500.0,0.00010958,2]
[353242094,1739707851005,-500.0,0.00010958,2]
[353242095,1739707851014,-500.0,0.00010958,2]
[353242096,1739707851023,-500.0,0.00010958,2]
[353242097,1739707851032,-488.47929348,0.00010958,2]
[353242098,1739707851041,-503.8646973,0.00010958,2]
[353242099,1739707851050,-522.13,0.00010958,2]
[353242100,1739707851059,-500.0,0.00010958,2]
[353242101,1739707851068,-415.04001485,0.00010958,2]
[353242102,1739707851077,-500.0,0.00010958,2]
[353242103,1739707851087,-500.0,0.00010958,2]
[353242104,1739707851095,-502.85754568,0.00010958,2]
[353242105,1739707851105,-500.0,0.00010958,2]
[353242106,1739707851114,-500.0,0.00010958,2]
[353242107,1739707851124,-500.0,0.00010958,2]
[353242108,1739707851134,-500.0,0.00010958,2]
[353242109,1739707851143,-985.15,0.00010958,2]
[353242110,1739707851152,-500.0,0.00010958,2]
[353242111,1739707851160,-500.0,0.00010958,2]
[353242112,1739707851170,-502.89110271,0.00010958,2]
[353242113,1739707851179,-500.0,0.00010958,2]
[353242114,1739707851188,-500.0,0.00010958,2]
[353242115,1739707851197,-500.0,0.00010958,2]
[353242116,1739707851206,-500.0,0.00010958,2]
[353242117,1739707851215,-500.0,0.00010958,2]
[353242118,1739707851225,-500.0,0.00010958,2]
[353242119,1739707851234,-500.0,0.00010958,2]
[353242120,1739707851243,-500.0,0.00010958,2]
[353242121,1739707851252,-500.0,0.00010958,2]
[353242122,1739707851261,-502.43570882,0.00010958,2]
[353242123,1739707851270,-500.0,0.00010958,2]
[353242124,1739707851279,-500.0,0.00010958,2]
[353242125,1739707851288,-500.0,0.00010958,2]
[353242126,1739707851297,-500.0,0.00010958,2]
[353242127,1739707851307,-502.05189245,0.00010958,2]
[353242128,1739707851316,-500.0,0.00010958,2]
[353242129,1739707851325,-1029.92,0.00010958,2]
[353242130,1739707851335,-486.28132714,0.00010958,2]
[353242131,1739707851368,-13.71867286,0.00010958,2]
[353242132,1739707851380,-500.0,0.00010958,2]
[353242133,1739707851389,-500.0,0.00010958,2]
[353242134,1739707851398,-500.0,0.00010958,2]
[353242135,1739707851407,-500.0,0.00010958,2]
[353242136,1739707851416,-500.0,0.00010958,2]
[353242137,1739707851426,-186.08551521,0.00010958,2]
[353242138,1739707851437,-320.46278922,0.00010958,2]
[353242139,1739707851446,-500.0,0.00010958,2]
[353242140,1739707851457,-500.0,0.00010958,2]
[353242141,1739707851466,-500.0,0.00010958,2]
[353242142,1739707851477,-500.0,0.00010958,2]
[353242143,1739707851486,-500.0,0.00010958,2]
[353242144,1739707851495,-298.23058575,0.00010958,2]
[353242145,1739707851507,-202.75369984,0.00010958,2]
[353242146,1739707851516,-308.24630016,0.00010958,2]
[353242147,1739707851538,-193.74583154,0.00010958,2]
[353242148,1739707851549,-119.02222078,0.00010958,2]
[353242149,1739707851560,-420.13093709,0.00010958,2]
[353242150,1739707851571,-13.82684213,0.00010958,2]
[353242151,1739707851580,-420.14877774,0.00010958,2]
[353242152,1739707851591,-79.85122226,0.00010958,2]
[353242153,1739707851600,-428.33145994,0.00010958,2]
[353242154,1739707851612,-71.66854006,0.00010958,2]
[353242155,1739707851621,-500.25834675,0.00010958,2]
[353242156,1739707851630,-368.02311394,0.00010958,2]
[353242157,1739707851641,-131.97688606,0.00010958,2]
[353242158,1739707851650,-456.96311394,0.00010958,2]
[353242159,1739707936258,1684.1805,8.699e-05,2]
[353242160,1739707984844,1752.795,8.699e-05,2]
[353242161,1739708011562,2640.2917,8.699e-05,2]
[353242162,1739708072920,300.0,0.0002,120]
[353242163,1739708102147,418.0,0.0002,120]
[353242164,1739708336587,178.03542442,8.6e-05,2]
[353242165,1739708584371,1147.96,8.219e-05,2]
[353242166,1739708736464,1043.14596958,8e-05,2]
[353242167,1739708736486,8559.07844285,8e-05,2]
[353242168,1739708754900,1440.92155715,6.94e-05,2]
[353242169,1739708754923,1992.56191606,6.94e-05,2]
[353242181,1739709032355,-300.0,8.834e-05,2]
[353242182,1739709032368,-200.0,8.834e-05,2]
[353242183,1739709032380,-150.0,8.834e-05,2]
[353242184,1739709032392,-200.0,8.834e-05,2]
[353242185,1739709032404,-13411.49822347,8.835e-05,2]
[353242186,1739709032417,-2183.9654,8.835e-05,2]
[353242187,1739709032430,-298.7139,8.836e-05,2]
[353242188,1739709032443,-7088.78637006,8.836e-05,2]
[353242660,1739709038317,-578.75100938,8.836e-05,2]
[353242661,1739709038329,-28818.26442056,8.836e-05,2]
[353242662,1739709038340,-4810.5158,8.836e-05,2]
[353242663,1739709038350,-5645.2449,8.836e-05,2]
[353242664,1739709038360,-2513.7282,8.836e-05,2]
[353242665,1739709038371,-9143.422,8.836e-05,2]
[353242666,1739709038381,-611.44917525,8.836e-05,2]
[353242667,1739709038391,-681.8109,8.851e-05,2]
[353242668,1739709038403,-227.19,8.907e-05,2]
[353242669,1739709038413,-23900.0,8.944e-05,2]
[353242670,1739709038423,-186.71,9.263e-05,2]
[353242671,1739709038432,-200.0,9.412e-05,2]
[353242672,1739709038442,-1000.0,9.432e-05,2]
[353242673,1739709038451,-250.0,9.519e-05,2]
[353242674,1739709038461,-420.0,9.717e-05,2]
[353242675,1739709038470,-150.0,9.717e-05,2]
[353242676,1739709038480,-200.0,9.717e-05,2]
[353242677,1739709038490,-153.85014471,9.907e-05,2]
[353242678,1739709038499,-153.85014471,9.915e-05,2]
[353242679,1739709038509,-153.85014471,9.922e-05,2]
[353242680,1739709038519,-153.85014471,9.929e-05,2]
[353242681,1739709038528,-150.0,9.932e-05,2]
[353242682,1739709038539,-638.0,9.932e-05,2]
[353242683,1739709038548,-569.0,9.932e-05,2]
[353242684,1739709038558,-1786.0,9.932e-05,2]
[353242685,1739709038568,-2957.0,9.932e-05,2]
[353242686,1739709038577,-908.0,9.932e-05,2]
[353242687,1739709038587,-1266.0,9.932e-05,2]
[353242688,1739709038595,-783.0,9.932e-05,2]
[353242689,1739709038605,-539.0,9.932e-05,2]
[353242690,1739709038614,-4027.0,9.932e-05,2]
[353242691,1739709038624,-150.0,9.932e-05,2]
[353242692,1739709038633,-3917.0,9.932e-05,2]
[353242693,1739709038643,-1008.0,9.932e-05,2]
[353242694,1739709038653,-2025.0,9.932e-05,2]
[353242695,1739709038662,-153.85014471,9.936e-05,2]
[353242696,1739709038672,-611.44917524,9.939e-05,2]
[353242697,1739709038683,-153.85014471,9.944e-05,2]
[353242698,1739709038693,-153.85014471,9.951e-05,2]
[353242700,1739709038702,-609.44229262,9.957e-05,2]
[353242702,1739709038711,-153.85014471,9.958e-05,2]
[353242704,1739709038720,-3238.993,9.966e-05,2]
[353242706,1739709038729,-193.071,9.966e-05,2]
[353242708,1739709038740,-69362.59671205,9.98e-05,2]
[353242710,1739709038749,-150.0,0.0001,2]
[353242712,1739709038759,-150.0,0.0001,2]
[353242714,1739709038768,-150.0,0.0001,2]
[353242716,1739709038777,-150.0,0.0001,2]
[353242718,1739709038787,-151.08955251,0.0001,2]
[353242720,1739709038797,-8525.90978954,0.0001,2]
[353242722,1739709038806,-559.17258537,0.0001,2]
[353242724,1739709038815,-4132.30168218,0.0001,2]
[353242726,1739709038824,-69418.23027499,0.0001,2]
[353242728,1739709038834,-266.4855983,0.0001,2]
[353242731,1739709038844,-3815733.84549976,0.0001,2]
[353242734,1739709038855,-1196.73651874,0.0001,2]
[353242742,1739709040507,-151.0,9.932e-05,2]
[353242743,1739709040519,-252.9861467,0.0001,2]
[353242744,1739709040671,-100310.90323485,0.0001,2]
[353242745,1739709040728,-957.29815606,0.0001,2]
[353242770,1739709043391,-500.0,9.562e-05,2]
[353242772,1739709043401,-1500.0,0.0001,2]
[353242775,1739709043413,-1457.86285409,0.0001,2]
[353242777,1739709043424,-709.00241687,0.0001,2]
[353242779,1739709043436,-455.37695136,0.0001,2]
[353242801,1739709045374,-1937.18805975,0.0001,2]
[353242802,1739709045538,-919.45000025,0.0001,2]
[353242806,1739709064636,217.0905,8.836e-05,2]
[353242807,1739709203251,622.0,8.8e-05,2]
[353242808,1739709489952,499.8689,8.836e-05,2]
[353242809,1739709563271,5000.0,8.84e-05,2]
[353242810,1739709655714,1090.56,8.219e-05,2]
[353242817,1739710231592,-2500.0,8.851e-05,2]
[353242818,1739710231602,-200.0,8.917e-05,2]
[353242819,1739710231611,-619.7235829,8.984e-05,2]
[353242820,1739710231623,-1578.6564171,8.984e-05,2]
[353242821,1739710231633,-150.0,9e-05,2]
[353242822,1739710231643,-150.0,9e-05,2]
[353242823,1739710231652,-150.0,9e-05,2]
[353242824,1739710231661,-150.0,9e-05,2]
[353242825,1739710231671,-2918.83195824,9e-05,2]
[353242826,1739710231681,-98.93703079,9.051e-05,2]
[353242827,1739710231694,-101.06296921,9.051e-05,2]
[353242828,1739710231703,-403.18045577,9.171e-05,2]
[353242829,1739710231715,-596.81954423,9.171e-05,2]
[353242830,1739710231726,-150.0,9.25e-05,2]
[353242831,1739710231735,-186.71,9.378e-05,2]
[353242832,1739710231744,-162.36,9.41e-05,2]
[353242833,1739710231754,-439.5,9.42e-05,2]
[353242834,1739710231763,-150.0,9.5e-05,2]
[353242835,1739710231772,-150.0,9.562e-05,2]
[353242836,1739710231782,-440.1,9.59e-05,2]
[353242837,1739710231791,-440.1,9.59e-05,2]
[353242838,1739710231801,-440.1,9.62e-05,2]
[353242839,1739710231812,-440.1,9.62e-05,2]
[353242840,1739710231821,-200.0,9.736e-05,2]
[353242841,1739710231831,-150.0,9.75e-05,2]
[353242842,1739710231840,-4978.21584137,9.9e-05,2]
[353242843,1739710231900,-1565.51600315,9.9e-05,2]
[353242844,1739710231927,-3456.26815548,9.9e-05,2]
[353242845,1739710231937,-1337.27,9.91e-05,2]
[353242846,1739710231947,-440.1,9.91e-05,2]
[353242847,1739710231957,-1273.0,9.932e-05,2]
[353242848,1739710231966,-569.0,9.932e-05,2]
[353242849,1739710231976,-638.0,9.932e-05,2]
[353242850,1739710231986,-845.41046982,9.932e-05,2]
[353242851,1739710231998,-454.92529219,9.932e-05,2]
[353242852,1739710232020,-1198.53637903,9.932e-05,2]
[353242959,1739710237518,-1044.67364111,9.733e-05,2]
[353242961,1739710237528,-241.85185896,9.932e-05,2]
[353242963,1739710237539,-908.0,9.932e-05,2]
[353242965,1739710237549,-1260.001,9.932e-05,2]
[353242967,1739710237559,-1008.0,9.932e-05,2]
[353242969,1739710237569,-158.077,9.932e-05,2]
[353242971,1739710237578,-979.46023423,9.932e-05,2]
[353242974,1739710237597,-2933.53976577,9.932e-05,2]
[353242976,1739710237607,-150.0,9.932e-05,2]
[353242978,1739710237616,-1109.0,9.932e-05,2]
[353242979,1739710237626,-520.64,9.999e-05,2]
[353242980,1739710237636,-635.0,0.0001,2]
[353242981,1739710237645,-9638.2919738,0.0001,2]
[353242982,1739710237682,-3899387.03498265,0.0001,2]
[353242983,1739710237702,-500.0,0.0001,2]
[353242984,1739710237712,-140477.10336554,0.0001,2]
[353242985,1739710237753,-1730.02566665,0.0001,2]
[353242986,1739710237764,-9632.35661111,0.0001,2]
[353242987,1739710237812,-727.95966854,0.0001,2]
[353242990,1739710239622,-297.82867182,0.0001,2]
[353242991,1739710239682,-1183.24366956,0.0001,2]
[353242992,1739710239742,-4217.54015466,0.0001,2]
[353242993,1739710239754,-1199.30233872,0.0001,2]
[353242994,1739710239766,-37788.47121339,0.0001,2]
[353242995,1739710239807,-10532.0,0.0001,2]
[353242996,1739710239970,-6036.59941653,0.0001,2]
[353243016,1739710242652,-3197.54513101,0.0001,2]
[353243019,1739710242664,-102336.92802707,0.0001,2]
[353243023,1739710242710,-917.47135174,0.0001,2]
[353243035,1739710242818,-721.30718466,0.0001,2]
[353243037,1739710242829,-396.18532911,0.0001,2]
[353243049,1739710242985,-575.0,0.0001,2]
[353243050,1739710242995,-3271.78455,0.0001,2]
[353243052,1739710243006,-548.915419,0.0001,2]
[353243053,1739710243018,-276.29565446,0.0001,2]
[353243070,1739710245739,-2690.07562,0.0001,2]
[353243085,1739710578398,5267.8996,8.836e-05,2]
[353243086,1739710847420,1153.02,8.219e-05,2]
[353243087,1739710913077,6649.561,8.836e-05,2]
[353243088,1739711191411,250.0,8.807e-05,2]
[353243093,1739711431742,-10107.22964,8.836e-05,2]
[353243094,1739711431827,-0.06954669,8.836e-05,2]
[353243095,1739711431839,-3243.13981331,8.836e-05,2]
[353243096,1739711431849,-200.0,8.849e-05,2]
[353243097,1739711431862,-1689.43,8.863e-05,2]
[353243098,1739711431872,-200.0,8.914e-05,2]
[353243099,1739711431882,-496.17,8.915e-05,2]
[353243100,1739711431891,-150.0,9e-05,2]
[353243101,1739711431901,-244.2593734,9e-05,2]
[353243102,1739711431911,-150.0,9e-05,2]
[353243103,1739711431920,-152.17603003,9e-05,2]
[353243104,1739711431930,-1000.0,9.035e-05,2]
[353243105,1739711431940,-168.59,9.071e-05,2]
[353243106,1739711431950,-1500.0,9.136e-05,2]
[353243107,1739711431960,-164.46,9.136e-05,2]
[353243108,1739711431970,-179.4,9.258e-05,2]
[353243109,1739711431979,-179.4,9.282e-05,2]
[353243110,1739711431988,-179.4,9.305e-05,2]
[353243111,1739711431998,-200.0,9.469e-05,2]
[353243112,1739711432007,-23900.0,9.477e-05,2]
[353243113,1739711432017,-1415.76,9.53e-05,2]
[353243114,1739711432026,-500.0,9.562e-05,2]
[353243115,1739711432035,-638.0,9.625e-05,2]
[353243116,1739711432045,-569.0,9.625e-05,2]
[353243117,1739711432054,-1786.0,9.625e-05,2]
[353243118,1739711432063,-1265.0,9.625e-05,2]
[353243119,1739711432072,-2971.557,9.625e-05,2]
[353243120,1739711432081,-908.0,9.625e-05,2]
[353243122,1739711432091,-539.0,9.687e-05,2]
[353243124,1739711432100,-4027.0,9.687e-05,2]
[353243126,1739711432109,-3915.0,9.687e-05,2]
[353243128,1739711432118,-150.0,9.687e-05,2]
[353243130,1739711432128,-1009.441,9.687e-05,2]
[353243132,1739711432137,-200.0,9.719e-05,2]
[353243134,1739711432147,-150.0,9.72e-05,2]
[353243136,1739711432156,-1023.51953162,9.8e-05,2]
[353243138,1739711432165,-1121.2026683,9.8e-05,2]
[353243140,1739711432175,-10000.0,9.9e-05,2]
[353243142,1739711432184,-2025.0,9.932e-05,2]
[353243144,1739711432193,-1273.0,9.932e-05,2]
[353243146,1739711432202,-2591.194,9.957e-05,2]
[353243148,1739711432211,-193.071,9.957e-05,2]
[353243150,1739711432221,-519.78,9.999e-05,2]
[353243151,1739711432230,-500.0,9.999e-05,2]
[353243153,1739711432239,-505.65067466,9.999e-05,2]
[353243156,1739711432249,-500.0,9.999e-05,2]
[353243157,1739711432258,-300.0,9.999e-05,2]
[353243159,1739711432267,-500.0,9.999e-05,2]
[353243161,1739711432276,-500.0,9.999e-05,2]
[353243163,1739711432285,-500.0,9.999e-05,2]
[353243165,1739711432295,-500.0,9.999e-05,2]
[353243167,1739711432304,-500.0,9.999e-05,2]
[353243169,1739711432313,-299.855695,9.999e-05,2]
[353243171,1739711432322,-630.0,0.0001,2]
[353243173,1739711432331,-511165.83335376,0.0001,2]
[353243177,1739711432357,-2113.28286315,0.0001,2]
[353243179,1739711432368,-35740.81905366,0.0001,2]
[353243181,1739711432379,-774.34181465,0.0001,2]
[353243196,1739711437640,-533.5,9.687e-05,2]
[353243197,1739711437698,-575.5,9.687e-05,2]
[353243198,1739711437708,-6277.57281286,0.0001,2]
[353243199,1739711437862,-599.6337947,0.0001,2]
[353243216,1739711439721,-298873.07570757,0.0001,2]
[353243217,1739711439733,-2019.07561438,0.0001,2]
[353243218,1739711439830,-1324.84887284,0.0001,2]
[353243219,1739711439843,-302.2027,0.0001,2]
[353243220,1739711440105,-2914.5988525,0.0001,2]
[353243232,1739711442785,-569.0,0.0001,2]
[353243233,1739711442795,-6052.71451063,0.0001,2]
[353243234,1739711442808,-1668.02297108,0.0001,2]
[353243235,1739711442819,-993.12736041,0.0001,2]
[353243236,1739711442890,-1152.6941961,0.0001,2]
[353243237,1739711442903,-920.20292622,0.0001,2]
[353243238,1739711442930,-14285.92213661,0.0001,2]
[353243239,1739711442959,-2699.828592,0.0001,2]
[353243240,1739711443020,-1167188.46558255,0.0001,2]
[353243261,1739711445679,-140009.73119393,0.0001,2]
[353243262,1739711445738,-373.33754173,0.0001,2]
[353243263,1739711445749,-10497.46,0.0001,2]
[353243264,1739711445761,-273.62344693,0.0001,2]
[353243265,1739711445798,-9812.58599999,0.0001,2]
[353243266,1739711445810,-1306.58980199,0.0001,2]
[353243267,1739711445856,-729.99334585,0.0001,2]
[353243268,1739711445976,-355.64993399,0.0001,2]
[353243274,1739711611706,-30000.0,8.836e-05,2]
[353243276,1739711920393,1264.92,8.219e-05,2]
[353243277,1739711945705,220.0,0.000161,90]
[353243278,1739711956857,229.69,0.000161,90]
[353243279,1739711974814,229.68,0.000161,90]
[353243303,1739712632117,-150.0,8.835e-05,2]
[353243304,1739712632127,-200.0,8.835e-05,2]
[353243305,1739712632136,-3302.47497059,8.836e-05,2]
[353243451,1739712638060,-3050.79192003,8.836e-05,2]
[353243452,1739712638073,-521.74533198,8.836e-05,2]
[353243454,1739712638173,-10314.8669774,8.836e-05,2]
[353243455,1739712638183,-499.8689,8.836e-05,2]
[353243456,1739712638192,-217.0905,8.836e-05,2]
[353243457,1739712638202,-5267.8996,8.836e-05,2]
[353243458,1739712638211,-2612.1335,8.836e-05,2]
[353243460,1739712638221,-181.0509,8.836e-05,2]
[353243462,1739712638231,-5605.0574,8.836e-05,2]
[353243464,1739712638240,-200.0,8.839e-05,2]
[353243466,1739712638250,-1000.0,8.851e-05,2]
[353243468,1739712638259,-1333.62,8.953e-05,2]
[353243470,1739712638268,-1250.8149,8.973e-05,2]
[353243473,1739712638278,-297.5351065,9e-05,2]
[353243477,1739712638291,-288.32244412,9e-05,2]
[353243480,1739712638300,-1199.88,9.037e-05,2]
[353243483,1739712638309,-248.08,9.055e-05,2]
[353243486,1739712638318,-1000.0,9.275e-05,2]
[353243489,1739712638329,-181.75,9.57e-05,2]
[353243492,1739712638338,-200.0,9.719e-05,2]
[353243495,1739712638347,-1001.73898136,9.8e-05,2]
[353243498,1739712638357,-150.0,9.803e-05,2]
[353243501,1739712638368,-2072.955,9.962e-05,2]
[353243503,1739712638377,-193.07237455,9.962e-05,2]
[353243507,1739712638387,-10000.0,9.99e-05,2]
[353243509,1739712638395,-500.0,9.999e-05,2]
[353243511,1739712638405,-2324.74242932,0.0001,2]
[353243513,1739712638416,-998.96981071,0.0001,2]
[353243517,1739712638442,-291759.52482349,0.0001,2]
[353243520,1739712638467,-3832.10182229,0.0001,2]
[353243598,1739712639916,-644.08472678,0.0001,2]
[353243599,1739712639927,-607.64675005,0.0001,2]
[353243600,1739712640044,-1775.96541637,0.0001,2]
[353243601,1739712640098,-5301.5592032,0.0001,2]
[353243602,1739712640109,-3979.48707362,0.0001,2]
[353243603,1739712640120,-419.77238971,0.0001,2]
[353243604,1739712640131,-1656.58520388,0.0001,2]
[353243605,1739712640142,-9446.3636837,0.0001,2]
[353243606,1739712640153,-1438.54768027,0.0001,2]
[353243607,1739712640164,-1424.0,0.0001,2]
[353243608,1739712640175,-276.91061512,0.0001,2]
[353243609,1739712640189,-1457.925,0.0001,2]
[353243610,1739712640200,-3770.39230764,0.0001,2]
[353243611,1739712640211,-3933.36463944,0.0001,2]
[353243612,1739712640222,-1740.09140686,0.0001,2]
[353243613,1739712640233,-17342.21836858,0.0001,2]
[353243614,1739712640280,-4469.03176569,0.0001,2]
[353243635,1739712642904,-2687.35999125,0.0001,2]
[353243637,1739712642916,-748.63230573,0.0001,2]
[353243643,1739712642964,-411.10577259,0.0001,2]
[353243648,1739712643024,-26018.25275243,0.0001,2]
[353243680,1739712643370,-2346.3526878,0.0001,2]
[353243681,1739712643382,-20237.7693523,0.0001,2]
[353243682,1739712643393,-201945.36942727,0.0001,2]
[353243683,1739712643404,-561.17,0.0001,2]
[353243684,1739712643426,-816.924,0.0001,2]
[353243691,1739712645915,-414.86736611,9.803e-05,2]
[353243692,1739712645927,-223.13263389,9.803e-05,2]
[353243693,1739712645937,-211.50095779,0.0001,2]
[353243694,1739712645992,-943.17978662,0.0001,2]
[353243695,1739712646003,-17840.1352,0.0001,2]
[353243696,1739712646014,-50076.53338942,0.0001,2]
[353243697,1739712646028,-1581.93781418,0.0001,2]
[353243698,1739712646040,-2967.0000042,0.0001,2]
[353243699,1739712646051,-424.93824952,0.0001,2]
[353243700,1739712646062,-797.2045167,0.0001,2]
[353243701,1739712646074,-455.84,0.0001,2]
[353243702,1739712646098,-672.3,0.0001,2]
[353243703,1739712646144,-1189.33499715,0.0001,2]
[353243704,1739712646155,-1904.22084001,0.0001,2]
[353243705,1739712646166,-5570.45453968,0.0001,2]
[353243710,1739712981057,1201.67,8.219e-05,2]
[353243713,1739713832392,-562.73,9.11e-05,2]
[353243714,1739713832402,-163.88605629,9.11e-05,2]
[353243715,1739713832414,-335.73,9.11e-05,2]
[353243716,1739713832425,-598.93662339,9.11e-05,2]
[353243717,1739713832448,-371.72732032,9.11e-05,2]
[353243718,1739713832457,-200.0,9.154e-05,2]
[353243719,1739713832467,-181.75,9.198e-05,2]
[353243720,1739713832476,-200.0,9.2e-05,2]
[353243721,1739713832486,-4213.90673472,9.2e-05,2]
[353243722,1739713832495,-248.08,9.248e-05,2]
[353243723,1739713832504,-1000.0,9.511e-05,2]
[353243724,1739713832513,-9010.56,9.524e-05,2]
[353243725,1739713832523,-569.0,9.803e-05,2]
[353243726,1739713832532,-638.0,9.803e-05,2]
[353243727,1739713832541,-610.67,9.803e-05,2]
[353243728,1739713832551,-200.0,9.803e-05,2]
[353243729,1739713832561,-163.23,9.803e-05,2]